lending/lending_fUSD_20250130
["ID","MTS","AMOUNT","RATE_DAILY","PERIOD"]
[350990751,1738269032228,-363.06,0.00017679,2]
[350990752,1738269032238,-2678.37,0.00017793,2]
[350990753,1738269032248,-356.64,0.00017904,2]
[350990754,1738269032259,-156.62,0.00017904,2]
[350990755,1738269032269,-156.62,0.00017922,2]
[350990756,1738269032280,-156.62,0.0001794,2]
[350990757,1738269032291,-156.62,0.00017958,2]
[350990758,1738269032301,-156.62,0.00017975,2]
[350990759,1738269032311,-156.62,0.00017993,2]
[350990760,1738269032320,-316.98,0.00018007,2]
[350990761,1738269032330,-366.93,0.00018011,30]
[350990762,1738269032341,-1664.98,0.00018047,2]
[350990763,1738269032350,-800.0,0.00018068,2]
[350990764,1738269032360,-150.0,0.0001821,2]
[350990765,1738269032371,-175.95,0.00018317,2]
[350990766,1738269032383,-150.0,0.00018356,2]
[350990767,1738269032394,-200.0,0.000187,6]
[350990768,1738269032404,-296.7182967,0.00018784,2]
[350990769,1738269032413,-150.0,0.00018786,2]
[350990770,1738269032423,-150.0,0.00018786,2]
[350990771,1738269032434,-500.0,0.000188,6]
[350990772,1738269032444,-700.0,0.000189,6]
[350990773,1738269032453,-3589.22987895,0.000189,2]
[350990774,1738269032463,-435.62,0.00018977,2]
[350990775,1738269032473,-5899.9856,0.00018978,2]
[350990777,1738269032483,-1994.6198,0.00018978,2]
[350990779,1738269032493,-385.98,0.0001899,2]
[350990780,1738269032502,-4489.85225862,0.00019,2]
[350990781,1738269032515,-160.14774138,0.00019,2]
[350990782,1738269032524,-57931.65753775,0.00019,2]
[350990903,1738269037847,-462.97999996,0.00019,2]
[350990904,1738269037959,-371.03937804,0.00019,2]
[350990905,1738269038068,-1190.9885909,0.00019,2]
[350990946,1738269039968,-3848.65389671,0.00019,2]
[350990947,1738269040080,-774.70514997,0.00019,2]
[350990948,1738269040092,-35684.50328488,0.00019,2]
[350990949,1738269040149,-1293.03093,0.00019,2]
[350990950,1738269040161,-1961.56794,0.00019,2]
[350990951,1738269040207,-5641.33439989,0.00019,2]
[350990952,1738269040220,-2087.91498332,0.00019,2]
[350990954,1738269042870,-402.832,0.00019,2]
[350990955,1738269043232,-4325.99470946,0.00019,2]
[350990956,1738269043246,-12276.35588026,0.00019,2]
[350990957,1738269043258,-1039.491424,0.00019,2]
[350990960,1738269046411,-2380.10749,0.00019,2]
[350990961,1738269046423,-4424.29089115,0.00019,2]
[350990962,1738269046436,-1637.765266,0.00019,2]
[350990963,1738269331959,220.95,0.00010137,2]
[350990980,1738270065805,500.0,0.00023,120]
[350990981,1738270118960,150.0,0.00012001,2]
[350991006,1738270232071,-474.27662681,0.00014276,2]
[350991007,1738270232128,-583.72337319,0.00014276,2]
[350991008,1738270232139,-1058.0,0.00015028,2]
[350991009,1738270232149,-211.82729073,0.00015719,2]
[350991010,1738270232159,-1058.0,0.00015819,2]
[350991011,1738270232169,-313.73,0.0001605,2]
[350991012,1738270232178,-1058.0,0.00016609,2]
[350991013,1738270232189,-574.64424464,0.0001744,2]
[350991014,1738270232201,-483.35575536,0.0001744,2]
[350991015,1738270232211,-53.0056522,0.00017566,2]
[350991016,1738270232223,-96.9943478,0.00017566,2]
[350991017,1738270232233,-200.0,0.00017591,2]
[350991018,1738270232243,-256.77,0.00017808,2]
[350991019,1738270232253,-500.0,0.00017938,2]
[350991020,1738270232263,-371.62106306,0.00018,5]
[350991021,1738270232274,-104.8290798,0.0001803,2]
[350991022,1738270232286,-132.8009202,0.0001803,2]
[350991023,1738270232295,-1000.0,0.00018068,2]
[350991024,1738270232305,-342.89836321,0.00018081,2]
[350991025,1738270232316,-1180.04782513,0.00018081,2]
[350991026,1738270232328,-682.34,0.00018081,2]
[350991027,1738270232341,-935.3,0.00018081,2]
[350991028,1738270232352,-261.0,0.00018081,2]
[350991029,1738270232403,-3148.97995,0.00018081,2]
[350991030,1738270232429,-17275.66386166,0.00018081,2]
[350991031,1738270232439,-1000.0,0.00018129,2]
[350991032,1738270232449,-250.0,0.00018143,2]
[350991033,1738270232459,-2601.07,0.00018171,2]
[350991034,1738270232469,-5861.32,0.00018211,2]
[350991035,1738270232479,-150.0,0.00018257,2]
[350991036,1738270232490,-1061.23442652,0.00018312,2]
[350991037,1738270232500,-313.73,0.00018314,2]
[350991038,1738270232510,-348.58,0.00018348,30]
[350991039,1738270232520,-430.947,0.00018446,2]
[350991040,1738270232533,-200.0,0.000186,6]
[350991041,1738270232545,-500.0,0.000187,6]
[350991042,1738270232555,-800.0,0.000188,6]
[350991043,1738270232566,-2500.0,0.00018899,2]
[350991044,1738270232575,-4642.4352,0.00018899,2]
[350991045,1738270232584,-16963.6084,0.00018899,2]
[350991046,1738270232595,-4292.9916,0.000189,2]
[350991047,1738270232606,-3999.02822824,0.000189,2]
[350991048,1738270232615,-1100.0,0.000189,6]
[350991049,1738270232624,-630.53816642,0.000189,2]
[350991050,1738270232634,-177.67229891,0.000189,2]
[350991051,1738270232643,-261.19436177,0.00018904,2]
[350991052,1738270232653,-244.45041247,0.00018904,2]
[350991053,1738270232662,-500.0,0.00018973,2]
[350991054,1738270232671,-2735.0,0.00018978,9]
[350991055,1738270232684,-630.53816641,0.00018981,2]
[350991056,1738270232694,-152.17950909,0.00018988,2]
[350991057,1738270232704,-192.99,0.00018989,2]
[350991060,1738270232714,-192.99,0.00018989,2]
[350991063,1738270232728,-347948.07826936,0.00018997,3]
[350991066,1738270232737,-232.24428328,0.00018999,2]
[350991069,1738270232746,-184687.76258399,0.00018999,2]
[350991464,1738270237987,-255.91566008,0.00018999,2]
[350991470,1738270238078,-681.93192682,0.00018999,2]
[350991471,1738270238089,-2198.46322718,0.00018999,2]
[350991472,1738270238135,-44377.43950533,0.00018999,2]
[350991473,1738270238146,-5066.38091621,0.00018999,2]
[350991670,1738270240129,-3302.48047644,0.00018999,2]
[350991673,1738270240146,-16866.38392336,0.00018999,2]
[350991675,1738270240157,-43730.39528796,0.00018999,2]
[350991677,1738270240168,-2614.89484777,0.00018999,2]
[350991699,1738270240409,-857.383839,0.00018999,2]
[350991701,1738270240421,-10528.0,0.00018999,2]
[350991706,1738270240465,-2134.09745854,0.00018999,2]
[350991708,1738270240484,-810.81000002,0.00018999,2]
[350991952,1738270243107,-26074.6354,0.00018999,2]
[350991969,1738270243261,-2562.70000023,0.00018999,2]
[350992129,1738270246222,-949.60416157,0.00018999,2]
[350992135,1738270247002,-1248.46002,0.00018999,2]
[350992139,1738271314255,160.49,0.00010137,2]
[350992154,1738271432463,-313.63,0.00016162,2]
[350992155,1738271432474,-160.49,0.00016813,2]
[350992156,1738271432484,-1000.0,0.00017456,2]
[350992157,1738271432494,-211.82729072,0.00017854,2]
[350992158,1738271432503,-250.0,0.00017908,2]
[350992159,1738271432512,-300.0,0.00017954,2]
[350992160,1738271432521,-13430.8,0.00017955,2]
[350992161,1738271432530,-694.61,0.00017964,2]
[350992162,1738271432540,-333.51,0.00018047,2]
[350992163,1738271432550,-2144.03,0.00018051,2]
[350992177,1738271432829,-900.0,0.00018068,2]
[350992180,1738271432840,-500.0,0.00018068,2]
[350992183,1738271432851,-219.49,0.00018113,2]
[350992186,1738271432861,-1000.0,0.00018116,2]
[350992189,1738271432870,-500.0,0.00018127,2]
[350992192,1738271432880,-331.15,0.00018173,30]
[350992194,1738271432889,-14669.59228268,0.00018378,2]
[350992198,1738271432915,-430.28464117,0.00018378,2]
[350992221,1738271438181,-557.91029838,0.00018378,2]
[350992222,1738271438240,-1002.12029988,0.00018378,2]
[350992223,1738271438252,-435.44832171,0.00018378,2]
[350992400,1738271440270,-459.69228085,0.00018378,2]
[350992402,1738271440283,-446.04678302,0.00018378,2]
[350992409,1738271440334,-2823.65458146,0.00018378,2]
[350992416,1738271440386,-344.2358753,0.00018378,2]
[350992418,1738271440399,-485.12087267,0.00018378,2]
[350992420,1738271440411,-1033.48909251,0.00018378,2]
[350992425,1738271440444,-19959.40467037,0.00018378,2]
[350992427,1738271440455,-313.63,0.00018426,2]
[350992429,1738271440465,-3908.0,0.00018533,2]
[350992431,1738271440477,-150.0,0.00018533,2]
[350992433,1738271440486,-1006.0,0.00018533,2]
[350992435,1738271440496,-1107.0,0.00018533,2]
[350992437,1738271440506,-1000.0,0.00018762,2]
[350992439,1738271440516,-362.4525,0.00018899,2]
[350992441,1738271440526,-410.718,0.000189,2]
[350992443,1738271440536,-2500.0,0.000189,2]
[350992445,1738271440546,-3865.72728726,0.000189,2]
[350992447,1738271440556,-504.4305332,0.000189,2]
[350992449,1738271440566,-205.0,0.0001896,2]
[350992451,1738271440576,-504.43053312,0.00018996,2]
[350992453,1738271440586,-3000.0,0.00018999,2]
[350992455,1738271440596,-94462.03448087,0.00019,2]
[350992457,1738271440606,-355.55951107,0.00019,2]
[350992460,1738271440616,-10716.90125601,0.00019,2]
[350992463,1738271440636,-390.242268,0.00019,2]
[350992467,1738271440669,-3237.34951007,0.00019,2]
[350992730,1738271443191,-177.67229891,0.000189,2]
[350992732,1738271443202,-26231.90994409,0.00019,2]
[350992748,1738271443360,-2047.37133327,0.00019,2]
[350992967,1738271446227,-2110.20431095,0.00019,2]
[350992968,1738271446239,-751.60691611,0.00019,2]
[350992969,1738271446342,-21092.092291,0.00019,2]
[350992970,1738271446358,-781.750005,0.00019,2]
[350992971,1738271446460,-282.19327559,0.00019,2]
[350992972,1738271446472,-1411.41613829,0.00019,2]
[350992973,1738271446518,-312.8408626,0.00019,2]
[350992974,1738271446530,-364.908,0.00019,2]
[350992990,1738272481894,10000.0,0.0001,2]
[350992991,1738272481918,10000.0,0.0001,2]
[350992992,1738272481941,10000.0,0.0001,2]
[350992993,1738272481967,10000.0,0.0001,2]
[350992994,1738272481989,10000.0,0.0001,2]
[350992995,1738272482012,10000.0,0.0001,2]
[350992996,1738272482035,10000.0,0.0001,2]
[350992997,1738272482058,10000.0,0.0001,2]
[350992998,1738272482080,3835.0,0.0001,2]
[350992999,1738272482108,92207.11450432,0.0001,2]
[350993000,1738272482134,95694.82877695,0.0001,2]
[350993035,1738272632431,-150.0,0.00015,2]
[350993036,1738272632442,-2328.69585001,0.00015,3]
[350993037,1738272632451,-150.0,0.00015,2]
[350993038,1738272632461,-297.83,0.00015433,2]
[350993039,1738272632470,-217.0,0.0001557,2]
[350993040,1738272632480,-217.0,0.0001587,2]
[350993041,1738272632489,-217.0,0.0001618,2]
[350993042,1738272632499,-173.40642769,0.000164,2]
[350993043,1738272632508,-217.0,0.0001649,2]
[350993044,1738272632519,-150.0,0.000165,2]
[350993045,1738272632529,-150.0,0.000165,2]
[350993046,1738272632538,-217.0,0.0001679,2]
[350993047,1738272632548,-217.0,0.000171,2]
[350993048,1738272632557,-266.8,0.00017175,2]
[350993049,1738272632566,-500.0,0.00017177,2]
[350993050,1738272632575,-569.00947397,0.00017208,2]
[350993051,1738272632588,-328.01300429,0.00017208,2]
[350993052,1738272632599,-102.97752174,0.00017208,2]
[350993053,1738272632609,-217.0,0.0001741,2]
[350993054,1738272632618,-250.0,0.00017418,2]
[350993055,1738272632628,-116.4086292,0.00017446,2]
[350993056,1738272632648,-1533.5913708,0.00017446,2]
[350993057,1738272632658,-314.59,0.00017499,30]
[350993058,1738272632667,-173.94,0.0001752,2]
[350993059,1738272632676,-1294.75519687,0.00017579,2]
[350993060,1738272635703,-2407.77715235,0.00017579,2]
[350993097,1738272638435,-11954.11765078,0.00017579,2]
[350993098,1738272638445,-297.83,0.00017696,2]
[350993099,1738272638455,-217.0,0.0001772,2]
[350993100,1738272638465,-271.05,0.00017804,2]
[350993101,1738272638475,-171.75,0.00017912,2]
[350993102,1738272638485,-1000.0,0.00017916,2]
[350993103,1738272638495,-217.0,0.0001802,2]
[350993104,1738272638504,-150.0,0.0001802,2]
[350993105,1738272638514,-1000.0,0.00018068,2]
[350993106,1738272638526,-500.0,0.00018068,2]
[350993107,1738272638535,-430.0,0.0001825,2]
[350993108,1738272638544,-217.0,0.0001833,2]
[350993109,1738272638554,-4187.71335042,0.000185,2]
[350993110,1738272638565,-1506.64790109,0.000185,2]
[350993111,1738272638575,-217.0,0.0001864,2]
[350993112,1738272638585,-6010.71367753,0.00018672,2]
[350993113,1738272638594,-511.0,0.0001888,2]
[350993114,1738272638604,-403.54442655,0.00018899,2]
[350993115,1738272638614,-195.56033,0.00018899,2]
[350993116,1738272638624,-223.8808815,0.00018899,2]
[350993117,1738272638634,-152.17950909,0.00018899,2]
[350993118,1738272638643,-18931.585,0.000189,2]
[350993119,1738272638653,-217.0,0.0001894,2]
[350993120,1738272638663,-403.54442649,0.00018965,2]
[350993121,1738272638672,-180.08250141,0.00018989,2]
[350993122,1738272638681,-473.5683252,0.0001899,2]
[350993123,1738272638691,-948.892274,0.0001899,2]
[350993124,1738272638700,-4313.0416042,0.0001899,2]
[350993125,1738272638709,-1249.9188832,0.0001899,2]
[350993126,1738272638718,-7117.4064302,0.0001899,2]
[350993176,1738272640412,-902.60934777,0.0001899,2]
[350993177,1738272640472,-1148.6636,0.0001899,2]
[350993178,1738272640537,-1750.34852743,0.0001899,2]
[350993179,1738272640547,-1000.0,0.0001899,2]
[350993180,1738272640556,-1000.0,0.0001899,2]
[350993181,1738272640565,-1000.0,0.0001899,2]
[350993182,1738272640574,-1000.0,0.0001899,2]
[350993183,1738272640583,-176.26285101,0.00018998,2]
[350993184,1738272640592,-1000.0,0.00018999,2]
[350993185,1738272640602,-1000.0,0.00018999,2]
[350993186,1738272640612,-1000.0,0.00018999,2]
[350993187,1738272640622,-1000.0,0.00018999,2]
[350993188,1738272640634,-973.19358025,0.00018999,2]
[350993189,1738272640713,-26.80641975,0.00018999,2]
[350993190,1738272640722,-836.09069122,0.00018999,2]
[350993194,1738272644365,-163.90930878,0.00018999,2]
[350993195,1738272644374,-127.02052835,0.00018999,2]
[350993197,1738272644404,-872.97947165,0.00018999,2]
[350993199,1738272644413,-1000.0,0.00018999,2]
[350993201,1738272644422,-366.12313356,0.00018999,2]
[350993203,1738272644435,-633.87686644,0.00018999,2]
[350993205,1738272644444,-1000.0,0.00018999,2]
[350993207,1738272644453,-1000.0,0.00018999,2]
[350993209,1738272644462,-1000.0,0.00018999,2]
[350993211,1738272644471,-1000.0,0.00018999,2]
[350993213,1738272644480,-1000.0,0.00018999,2]
[350993216,1738272644490,-1000.0,0.00018999,2]
[350993217,1738272644499,-1000.0,0.00018999,2]
[350993219,1738272644508,-1000.0,0.00018999,2]
[350993221,1738272644517,-1000.0,0.00018999,2]
[350993223,1738272644528,-1000.0,0.00018999,2]
[350993225,1738272644537,-1000.0,0.00018999,2]
[350993226,1738272644546,-1000.0,0.00018999,2]
[350993227,1738272644555,-1000.0,0.00018999,2]
[350993228,1738272644564,-1000.0,0.00018999,2]
[350993230,1738272644574,-1000.0,0.00018999,2]
[350993231,1738272644583,-1000.0,0.00018999,2]
[350993232,1738272644592,-1000.0,0.00018999,2]
[350993233,1738272644601,-1000.0,0.00018999,2]
[350993234,1738272644610,-1000.0,0.00018999,2]
[350993235,1738272644619,-1000.0,0.00018999,2]
[350993236,1738272644628,-1000.0,0.00018999,2]
[350993237,1738272644637,-1000.0,0.00018999,2]
[350993238,1738272644646,-799.0,0.00018999,2]
[350993239,1738272644656,-249.95086689,0.00018999,2]
[350993240,1738272644665,-300.0,0.00018999,2]
[350993241,1738272644674,-1000.0,0.00018999,2]
[350993242,1738272644684,-1000.0,0.00018999,2]
[350993243,1738272644693,-1000.0,0.00018999,2]
[350993244,1738272644702,-1000.0,0.00018999,2]
[350993245,1738272644711,-1000.0,0.00018999,2]
[350993246,1738272644720,-1000.0,0.00018999,2]
[350993247,1738272644729,-1000.0,0.00018999,2]
[350993248,1738272644739,-1000.0,0.00018999,2]
[350993249,1738272644748,-1000.0,0.00018999,2]
[350993250,1738272644757,-1000.0,0.00018999,2]
[350993251,1738272644767,-1000.0,0.00018999,2]
[350993252,1738272644778,-1000.0,0.00018999,2]
[350993253,1738272644787,-1000.0,0.00018999,2]
[350993254,1738272644797,-1000.0,0.00018999,2]
[350993255,1738272644806,-1000.0,0.00018999,2]
[350993256,1738272644815,-1000.0,0.00018999,2]
[350993257,1738272644824,-1000.0,0.00018999,2]
[350993258,1738272644833,-1000.0,0.00018999,2]
[350993259,1738272644842,-1000.0,0.00018999,2]
[350993260,1738272644851,-1000.0,0.00018999,2]
[350993261,1738272644860,-1000.0,0.00018999,2]
[350993262,1738272644869,-1000.0,0.00018999,2]
[350993263,1738272644878,-1000.0,0.00018999,2]
[350993264,1738272644887,-1000.0,0.00018999,2]
[350993265,1738272644898,-1000.0,0.00018999,2]
[350993266,1738272644907,-1000.0,0.00018999,2]
[350993267,1738272644917,-1000.0,0.00018999,2]
[350993268,1738272644926,-1000.0,0.00018999,2]
[350993269,1738272644935,-1000.0,0.00018999,2]
[350993270,1738272644944,-1000.0,0.00018999,2]
[350993271,1738272644954,-1000.0,0.00018999,2]
[350993272,1738272644963,-1000.0,0.00018999,2]
[350993273,1738272644972,-1000.0,0.00018999,2]
[350993274,1738272644981,-1000.0,0.00018999,2]
[350993275,1738272644990,-1000.0,0.00018999,2]
[350993276,1738272644999,-1000.0,0.00018999,2]
[350993277,1738272645009,-1000.0,0.00018999,2]
[350993278,1738272645018,-1000.0,0.00018999,2]
[350993279,1738272645029,-1000.0,0.00018999,2]
[350993280,1738272645038,-1000.0,0.00018999,2]
[350993281,1738272645047,-1000.0,0.00018999,2]
[350993282,1738272645056,-1000.0,0.00018999,2]
[350993283,1738272645065,-1000.0,0.00018999,2]
[350993284,1738272645074,-1000.0,0.00018999,2]
[350993285,1738272645083,-1084875.19452379,0.00019,2]
[350993286,1738272645093,-103458.00266573,0.00019,2]
[350993287,1738272645102,-58428.24938824,0.00019,2]
[350993288,1738272645111,-2000.0,0.00019,2]
[350993289,1738272645120,-200.0,0.00019,2]
[350993290,1738272645129,-1014.296237,0.00019,2]
[350993291,1738272645138,-1014.296237,0.00019,2]
[350993292,1738272645147,-151.0,0.00019,2]
[350993293,1738272645156,-427.779885,0.00019,2]
[350993294,1738272645165,-427.779885,0.00019,2]
[350993295,1738272645174,-151.0,0.00019,2]
[350993296,1738272645183,-151.0,0.00019,2]
[350993297,1738272645193,-151.0,0.00019,2]
[350993298,1738272645202,-151.0,0.00019,2]
[350993299,1738272645210,-151.0,0.00019,2]
[350993300,1738272645219,-151.0,0.00019,2]
[350993301,1738272645228,-151.0,0.00019,2]
[350993302,1738272645237,-221.613691,0.00019,2]
[350993303,1738272645246,-221.613691,0.00019,2]
[350993304,1738272645256,-151.0,0.00019,2]
[350993305,1738272645265,-1210.620776,0.00019,2]
[350993306,1738272645276,-151.0,0.00019,2]
[350993307,1738272645285,-151.0,0.00019,2]
[350993308,1738272645293,-1210.620776,0.00019,2]
[350993309,1738272645302,-151.0,0.00019,2]
[350993310,1738272645311,-2000.0,0.00019,2]
[350993311,1738272645320,-151.0,0.00019,2]
[350993312,1738272645329,-43477.89624753,0.00019,2]
[350993313,1738272645338,-200.0,0.00019,2]
[350993314,1738272645347,-151.0,0.00019,2]
[350993315,1738272645358,-249.626125,0.00019,2]
[350993316,1738272645368,-249.626125,0.00019,2]
[350993317,1738272645377,-151.0,0.00019,2]
[350993318,1738272645386,-3000.0,0.00019,2]
[350993319,1738272645394,-151.0,0.00019,2]
[350993320,1738272645404,-240.473582,0.00019,2]
[350993321,1738272645413,-489.973182,0.00019,2]
[350993322,1738272645422,-489.973182,0.00019,2]
[350993323,1738272645432,-392.743207,0.00019,2]
[350993324,1738272645441,-392.743207,0.00019,2]
[350993325,1738272645450,-489.973182,0.00019,2]
[350993326,1738272645459,-489.973182,0.00019,2]
[350993327,1738272645468,-151.0,0.00019,2]
[350993328,1738272645477,-151.0,0.00019,2]
[350993329,1738272645486,-151.0,0.00019,2]
[350993330,1738272645495,-151.0,0.00019,2]
[350993331,1738272645504,-151.0,0.00019,2]
[350993332,1738272645513,-151.0,0.00019,2]
[350993333,1738272645524,-392.743207,0.00019,2]
[350993334,1738272645533,-392.743207,0.00019,2]
[350993335,1738272645542,-7591.85274526,0.00019,2]
[350993336,1738272645551,-515006.69802082,0.00019,2]
[350993337,1738272645560,-151.0,0.00019,2]
[350993338,1738272645569,-237.040129,0.00019,2]
[350993339,1738272645578,-151.0,0.00019,2]
[350993340,1738272645587,-237.040129,0.00019,2]
[350993341,1738272645596,-151.0,0.00019,2]
[350993342,1738272645605,-151.0,0.00019,2]
[350993343,1738272645614,-151.0,0.00019,2]
[350993344,1738272645624,-151.0,0.00019,2]
[350993345,1738272645633,-151.0,0.00019,2]
[350993346,1738272645642,-151.0,0.00019,2]
[350993347,1738272645651,-237.040129,0.00019,2]
[350993348,1738272645660,-237.040129,0.00019,2]
[350993349,1738272645670,-151.0,0.00019,2]
[350993350,1738272645679,-151.0,0.00019,2]
[350993351,1738272645688,-151.0,0.00019,2]
[350993352,1738272645698,-151.0,0.00019,2]
[350993353,1738272645707,-243.373077,0.00019,2]
[350993354,1738272645716,-151.0,0.00019,2]
[350993355,1738272645725,-151.0,0.00019,2]
[350993356,1738272645735,-151.0,0.00019,2]
[350993357,1738272645744,-151.0,0.00019,2]
[350993358,1738272645753,-151.0,0.00019,2]
[350993359,1738272645763,-151.0,0.00019,2]
[350993360,1738272645773,-412.566298,0.00019,2]
[350993361,1738272645783,-412.566298,0.00019,2]
[350993362,1738272645792,-412.566298,0.00019,2]
[350993363,1738272645801,-412.566298,0.00019,2]
[350993364,1738272645810,-412.566298,0.00019,2]
[350993365,1738272645819,-412.566298,0.00019,2]
[350993366,1738272645829,-528.441253,0.00019,2]
[350993367,1738272645838,-528.441253,0.00019,2]
[350993368,1738272645847,-528.441253,0.00019,2]
[350993369,1738272645857,-528.441253,0.00019,2]
[350993370,1738272645874,-528.441253,0.00019,2]
[350993371,1738272645890,-528.441253,0.00019,2]
[350993372,1738272645900,-528.441253,0.00019,2]
[350993373,1738272645910,-528.441253,0.00019,2]
[350993374,1738272645920,-163.148418,0.00019,2]
[350993375,1738272645930,-151.0,0.00019,2]
[350993376,1738272645939,-151.0,0.00019,2]
[350993377,1738272645949,-292.889792,0.00019,2]
[350993378,1738272645960,-294.784735,0.00019,2]
[350993379,1738272645969,-294.784735,0.00019,2]
[350993380,1738272645981,-294.784735,0.00019,2]
[350993381,1738272645991,-294.784735,0.00019,2]
[350993382,1738272646001,-294.784735,0.00019,2]
[350993383,1738272646011,-294.784735,0.00019,2]
[350993384,1738272646022,-294.784735,0.00019,2]
[350993385,1738272646031,-294.784735,0.00019,2]
[350993386,1738272646041,-151.0,0.00019,2]
[350993387,1738272646051,-151.0,0.00019,2]
[350993388,1738272646061,-151.0,0.00019,2]
[350993389,1738272646071,-151.0,0.00019,2]
[350993390,1738272646080,-151.0,0.00019,2]
[350993391,1738272646090,-151.0,0.00019,2]
[350993392,1738272646100,-340.42856214,0.0001901,7]
[350993394,1738272646109,-1000.0,0.0001902,2]
[350993396,1738272646119,-403.54442649,0.0001903,2]
[350993398,1738272646128,-296.44363703,0.00019078,2]
[350993399,1738272646138,-403.54442649,0.00019096,2]
[350993401,1738272646147,-223.8808815,0.00019106,2]
[350993403,1738272646157,-5069.01549963,0.0001911,2]
[350993405,1738272646168,-2649.2960625,0.00019132,2]
[350993408,1738272646178,-2649.2960625,0.00019148,2]
[350993410,1738272646187,-403.54442649,0.00019161,2]
[350993412,1738272646197,-1000.0,0.00019164,2]
[350993414,1738272646207,-2649.2960625,0.00019165,2]
[350993416,1738272646218,-99395.92713042,0.0001917,2]
[350993418,1738272646228,-277.834108,0.0001917,2]
[350993420,1738272646237,-528.441253,0.0001917,2]
[350993423,1738272646247,-528.441253,0.0001917,2]
[350993426,1738272646258,-294.784735,0.0001917,2]
[350993428,1738272646267,-294.784735,0.0001917,2]
[350993431,1738272646278,-287.810918,0.0001917,2]
[350993433,1738272646288,-151.0,0.0001917,2]
[350993435,1738272646297,-315.86737306,0.00019173,2]
[350993437,1738272646307,-500.0,0.00019173,2]
[350993438,1738272646316,-531.41330234,0.00019173,2]
[350993439,1738272646326,-152.08223395,0.00019173,2]
[350993440,1738272646336,-301.80185263,0.00019173,2]
[350993441,1738272646346,-517.01576522,0.00019173,2]
[350993442,1738272646357,-1210.620776,0.00019173,2]
[350993443,1738272646367,-151.0,0.00019173,2]
[350993444,1738272646384,-151.0,0.00019173,2]
[350993445,1738272646394,-1210.620776,0.00019173,2]
[350993446,1738272646405,-151.0,0.00019173,2]
[350993447,1738272646414,-151.0,0.00019173,2]
[350993448,1738272646424,-249.626125,0.00019173,2]
[350993449,1738272646434,-249.626125,0.00019173,2]
[350993450,1738272646444,-999.0,0.00019174,2]
[350993460,1738272646784,-300.0,0.00019174,2]
[350993462,1738272646796,-31032.61654822,0.00019175,7]
[350993464,1738272646807,-151.0,0.00019175,2]
[350993466,1738272646817,-151.0,0.00019175,2]
[350993468,1738272646827,-151.0,0.00019175,2]
[350993470,1738272646836,-291.2,0.00019175,2]
[350993472,1738272646846,-291.2,0.00019175,2]
[350993475,1738272646856,-151.0,0.00019175,2]
[350993477,1738272646865,-151.0,0.00019175,2]
[350993479,1738272646875,-151.0,0.00019175,2]
[350993481,1738272646884,-151.0,0.00019175,2]
[350993483,1738272646895,-151.0,0.00019175,2]
[350993485,1738272646904,-151.0,0.00019175,2]
[350993487,1738272646914,-151.0,0.00019175,2]
[350993489,1738272646923,-151.0,0.00019175,2]
[350993490,1738272646933,-221.613691,0.00019175,2]
[350993491,1738272646943,-221.613691,0.00019175,2]
[350993492,1738272646954,-151.0,0.00019175,2]
[350993493,1738272646964,-151.0,0.00019175,2]